bitfinex/quotes_BTCUSD_20250809
["timestamp","ask_amount","ask_price","bid_price","bid_amount"]
[1754709121100,0.30848489,116540.0,116530.0,0.31867295]
[1754709121617,0.30844489,116540.0,116530.0,0.31867295]
[1754709121816,0.17676489,116540.0,116530.0,0.31867295]
[1754709122067,0.30848489,116540.0,116530.0,0.31867295]
[1754709122371,0.17676489,116540.0,116530.0,0.31867295]
[1754709122670,0.30848489,116540.0,116530.0,0.31867295]
[1754709123949,0.30844489,116540.0,116530.0,0.31867295]
[1754709131097,0.30844489,116540.0,116530.0,0.001]
[1754709133522,0.30844489,116540.0,116530.0,0.31867295]
[1754709133703,0.30844489,116540.0,116530.0,0.001]
[1754709134037,0.30844489,116540.0,116530.0,0.31867295]
[1754709134410,0.30844489,116540.0,116530.0,0.001]
[1754709134609,0.30844489,116540.0,116530.0,0.31867295]
[1754709141104,0.13236,116540.0,116530.0,0.49222257]
[1754709141308,0.13236,116540.0,116530.0,0.56938724]
[1754709141505,0.13236,116540.0,116530.0,0.25171429]
[1754709141711,0.13236,116540.0,116530.0,0.56938724]
[1754709143602,0.13236,116540.0,116530.0,0.56838724]
[1754709144011,0.13236,116540.0,116530.0,0.57038724]
[1754709144214,0.13236,116540.0,116530.0,0.56838724]
[1754709144793,0.13236,116540.0,116530.0,0.57238724]
[1754709145187,0.00302,116550.0,116540.0,0.17161489]
[1754709145344,0.18336739,116560.0,116550.0,0.17160017]
[1754709145556,0.18536739,116560.0,116550.0,0.48927312]
[1754709145746,0.31756739,116560.0,116550.0,0.48927312]
[1754709145948,0.31756739,116560.0,116550.0,0.49119312]
[1754709146791,0.32256739,116560.0,116550.0,0.49119312]
[1754709147163,0.32256739,116560.0,116550.0,0.31959295]
[1754709147876,0.32256739,116560.0,116550.0,0.31767295]
[1754709148053,0.19036739,116560.0,116550.0,0.31767295]
[1754709148256,0.32248739,116560.0,116550.0,0.31767295]
[1754709148474,0.19036739,116560.0,116550.0,0.31767295]
[1754709148640,0.32248739,116560.0,116540.0,0.56645251]
[1754709149044,0.64016034,116560.0,116540.0,0.56645251]
[1754709149251,0.32248739,116560.0,116540.0,0.56645251]
[1754709149491,0.32048739,116560.0,116540.0,0.24877956]
[1754709149631,0.32048739,116560.0,116540.0,0.56645251]
[1754709149839,0.32148739,116560.0,116540.0,0.56645251]
[1754709150073,0.17160017,116550.0,116540.0,0.56645251]
[1754709150257,0.17160017,116550.0,116540.0,0.56837251]
[1754709150486,0.34226339,116560.0,116540.0,0.49120784]
[1754709150687,0.34226339,116560.0,116540.0,0.56837251]
[1754709151090,0.34126339,116560.0,116540.0,0.5769064]
[1754709151296,0.18339139,116570.0,116550.0,0.48927312]
[1754709151503,0.13208,116560.0,116550.0,0.48927312]
[1754709151796,0.30366544,116560.0,116550.0,0.49119312]
[1754709152022,0.30685544,116560.0,116550.0,0.49119312]
[1754709152222,0.30785544,116560.0,116550.0,0.49119312]
[1754709152788,0.30685544,116560.0,116550.0,0.49119312]
[1754709153115,0.30685544,116560.0,116550.0,0.49419312]
[1754709153502,0.30685544,116560.0,116550.0,0.17652017]
[1754709153707,0.30685544,116560.0,116550.0,0.49419312]
[1754709153919,0.30685544,116560.0,116550.0,0.49819312]
[1754709154535,0.30681544,116560.0,116550.0,0.49819312]
[1754709155561,0.30681544,116560.0,116550.0,0.18052017]
[1754709155759,0.30881544,116560.0,116550.0,0.49819312]
[1754709157400,0.19746677,116570.0,116560.0,0.17158544]
[1754709157610,0.30361277,116570.0,116560.0,0.49117839]
[1754709157849,0.30680277,116570.0,116560.0,0.49117839]
[1754709158259,0.13523204,116570.0,116560.0,0.49117839]
[1754709158686,0.13523204,116570.0,116560.0,0.49217839]
[1754709161264,0.30680277,116570.0,116560.0,0.49217839]
[1754709162030,0.30880277,116570.0,116560.0,0.49217839]
[1754709163321,0.30880277,116570.0,116560.0,0.17450544]
[1754709163501,0.30880277,116570.0,116560.0,0.49217839]
[1754709163715,0.30880277,116570.0,116560.0,0.00292]
[1754709163919,0.30880277,116570.0,116560.0,0.001]
[1754709164542,0.30880277,116570.0,116560.0,0.31867295]
[1754709164750,0.30880277,116570.0,116560.0,0.001]
[1754709164988,0.30880277,116570.0,116560.0,0.32081776]
[1754709165173,0.30880277,116570.0,116560.0,0.31867295]
[1754709166137,0.30880277,116570.0,116560.0,0.001]
[1754709166355,0.30880277,116570.0,116560.0,0.32081776]
[1754709166561,0.30880277,116570.0,116560.0,0.31867295]
[1754709166766,0.30880277,116570.0,116560.0,0.001]
[1754709167188,0.30880277,116570.0,116560.0,0.31867295]
[1754709167627,0.30880277,116570.0,116560.0,0.34831365]
[1754709167841,0.30880277,116570.0,116560.0,0.31867295]
[1754709168847,0.30880277,116570.0,116560.0,0.001]
[1754709169103,0.30880277,116570.0,116560.0,0.31867295]
[1754709174651,0.30880277,116570.0,116560.0,0.001]
[1754709174793,0.30880277,116570.0,116560.0,0.32081776]
[1754709175023,0.30880277,116570.0,116560.0,0.31867295]
[1754709176760,0.30880277,116570.0,116560.0,0.32059295]
[1754709177893,0.30880277,116570.0,116560.0,0.31867295]
[1754709188338,0.30880277,116570.0,116560.0,0.49025839]
[1754709188534,0.30880277,116570.0,116560.0,0.49217839]
[1754709189336,0.30880277,116570.0,116560.0,0.25167011]
[1754709189534,0.30880277,116570.0,116560.0,0.07816467]
[1754709189776,0.30880277,116570.0,116560.0,0.39798243]
[1754709189957,0.30880277,116570.0,116560.0,0.39583762]
[1754709196461,0.17160017,116550.0,116540.0,0.40810279]
[1754709196673,0.31032017,116550.0,116540.0,0.27433389]
[1754709196878,0.17668017,116550.0,116540.0,0.26694303]
[1754709197307,0.00508,116550.0,116540.0,0.90420893]
[1754709197507,0.20037272,116560.0,116540.0,1.04184893]
[1754709197712,0.19737272,116560.0,116550.0,0.31767295]
[1754709197913,0.19945272,116560.0,116550.0,0.00192]
[1754709198173,0.19945272,116560.0,116550.0,0.32173795]
[1754709198382,0.20245272,116560.0,116550.0,0.31959295]
[1754709199248,0.20245272,116560.0,116550.0,0.00192]
[1754709199466,0.20245272,116560.0,116550.0,0.32173795]
[1754709199670,0.20245272,116560.0,116550.0,0.31959295]
[1754709199874,0.20245272,116560.0,116550.0,0.32359295]
[1754709200731,0.20245272,116560.0,116550.0,0.00592]
[1754709200944,0.20245272,116560.0,116550.0,0.008065]
[1754709201145,0.20245272,116560.0,116550.0,0.011065]
[1754709201707,0.20245272,116560.0,116550.0,0.00892]
[1754709203929,0.20245272,116560.0,116550.0,0.007]
[1754709205096,0.20245272,116560.0,116550.0,0.32530446]
[1754709207988,0.025775,116560.0,116550.0,0.81712909]
[1754709208191,0.31170313,116570.0,116560.0,0.17134515]
[1754709208366,0.31170313,116570.0,116560.0,0.49371442]
[1754709208578,0.31170313,116570.0,116560.0,0.49156961]
[1754709208763,0.31377313,116570.0,116560.0,0.49156961]
[1754709209632,0.17669313,116570.0,116560.0,0.17134515]
[1754709209808,0.31373277,116570.0,116560.0,0.17134515]
[1754709210017,0.31373277,116570.0,116560.0,0.48964961]
[1754709212010,0.14216204,116570.0,116560.0,0.48964961]
[1754709212184,0.31373277,116570.0,116560.0,0.48964961]
[1754709212601,0.31373277,116570.0,116560.0,0.49264961]
[1754709213332,0.31373277,116570.0,116560.0,0.17834515]
[1754709213540,0.31373277,116570.0,116560.0,0.49664961]
[1754709214834,0.31373277,116570.0,116560.0,0.56347459]
[1754709215982,0.31373277,116570.0,116560.0,0.49664961]
[1754709220624,0.31373277,116570.0,116560.0,0.49658458]
[1754709221037,0.31373277,116570.0,116560.0,0.32523943]
[1754709223360,0.31373277,116570.0,116560.0,0.49682487]
[1754709225624,0.31373277,116570.0,116560.0,0.8150643]
[1754709225826,0.31373277,116570.0,116560.0,0.49682487]
[1754709226206,0.31373277,116570.0,116560.0,0.17858544]
[1754709226587,0.31373277,116570.0,116560.0,0.49682487]
[1754709227249,0.31373277,116570.0,116560.0,0.17858544]
[1754709227415,0.31373277,116570.0,116560.0,0.49682487]
[1754709229137,0.39970508,116570.0,116560.0,0.17858544]
[1754709229335,0.31373277,116570.0,116560.0,0.007]
[1754709229737,0.17669277,116570.0,116560.0,0.17858544]
[1754709230317,0.17669277,116570.0,116560.0,0.49682487]
[1754709230748,0.17669277,116570.0,116560.0,0.17858544]
[1754709230957,0.17669277,116570.0,116560.0,0.49682487]
[1754709233874,0.17669277,116570.0,116560.0,0.57405344]
[1754709234960,0.00012204,116570.0,116560.0,1.2124523]
[1754709235165,0.00012204,116570.0,116560.0,1.2136523]
[1754709235377,0.00012204,116570.0,116560.0,0.9261802]
[1754709236126,0.02901706,116590.0,116580.0,0.17155601]
[1754709236333,0.03099706,116590.0,116580.0,0.52410699]
[1754709236537,0.20253835,116590.0,116580.0,0.20586756]
[1754709236756,0.20253835,116590.0,116580.0,0.52400315]
[1754709237213,0.20253835,116590.0,116580.0,0.20586756]
[1754709237377,0.20753835,116590.0,116580.0,0.52400315]
[1754709238175,0.20753835,116590.0,116580.0,0.20586756]
[1754709238379,0.0225,116590.0,116580.0,0.52592315]
[1754709238762,0.0205,116590.0,116580.0,0.52592315]
[1754709238980,0.0205,116590.0,116580.0,0.28494823]
[1754709239206,0.0175,116590.0,116580.0,0.60308382]
[1754709239411,0.0175,116590.0,116580.0,0.92121941]
[1754709240178,0.0175,116590.0,116580.0,0.92421941]
[1754709240807,0.0175,116590.0,116580.0,0.28794823]
[1754709241046,0.0175,116590.0,116580.0,0.92421941]
[1754709241154,0.0175,116590.0,116580.0,0.74616382]
[1754709241366,0.02242,116590.0,116580.0,0.74616382]
[1754709241567,0.02242,116590.0,116580.0,0.75016382]
[1754709243083,0.02242,116590.0,116580.0,0.43202823]
[1754709243282,0.02242,116590.0,116580.0,0.67300315]
[1754709244075,0.19396129,116590.0,116580.0,0.67300315]
[1754709246680,0.19396129,116590.0,116580.0,0.35486756]
[1754709246864,0.19396129,116590.0,116580.0,0.67300315]
[1754709249103,0.19396129,116590.0,116580.0,0.53292315]
[1754709250670,0.19396129,116590.0,116580.0,0.007]
[1754709250844,0.59895899,116590.0,116580.0,0.007]
[1754709251032,0.2808234,116590.0,116580.0,0.007]
[1754709262727,0.6208234,116590.0,116580.0,0.007]
[1754709262953,0.6465944,116590.0,116580.0,0.007]
[1754709263182,0.6465944,116590.0,116580.0,0.004]
[1754709264489,0.17155601,116580.0,116570.0,0.31813559]
[1754709264694,0.17678601,116580.0,116570.0,0.31813559]
[1754709265073,0.31878601,116580.0,116570.0,0.31813559]
[1754709265694,0.31878601,116580.0,116570.0,0.32113559]
[1754709266667,0.31878601,116580.0,116570.0,0.32118284]
[1754709267289,0.31878601,116580.0,116570.0,0.003]
[1754709267513,0.31878601,116580.0,116570.0,0.32118284]
[1754709268064,0.31878601,116580.0,116570.0,0.32518284]
[1754709269442,0.31878601,116580.0,116570.0,0.007]
[1754709269619,0.31878601,116580.0,116570.0,0.32518284]
[1754709275300,0.31878601,116580.0,116570.0,0.32710284]
[1754709276679,0.31878601,116580.0,116570.0,0.00892]
[1754709276884,0.31878601,116580.0,116570.0,0.32518284]
[1754709277092,0.31878601,116580.0,116570.0,0.007]
[1754709277293,0.31878601,116580.0,116570.0,0.32518284]
[1754709279348,0.31878601,116580.0,116570.0,0.40234351]
[1754709280427,0.31878601,116580.0,116570.0,0.08416067]
[1754709280837,0.31878601,116580.0,116570.0,0.40234351]
[1754709282083,0.17678601,116580.0,116570.0,0.66262849]
[1754709282421,0.17678601,116580.0,116570.0,0.86280635]
[1754709282422,0.17155601,116580.0,116570.0,0.86280635]
[1754709282948,0.17155601,116580.0,116570.0,0.54462351]
[1754709283151,0.17678601,116580.0,116570.0,0.54462351]
[1754709284296,0.17678601,116580.0,116570.0,0.40426351]
[1754709284743,0.17471601,116580.0,116570.0,0.40426351]
[1754709285152,0.17471601,116580.0,116570.0,0.57583424]
[1754709286324,0.17155601,116580.0,116570.0,0.57583424]
[1754709288759,0.17155601,116580.0,116570.0,0.2576514]
[1754709289013,0.17155601,116580.0,116570.0,0.57583424]
[1754709289456,0.17471601,116580.0,116570.0,0.57583424]
[1754709289904,0.17471601,116580.0,116570.0,0.66262849]
[1754709290461,0.17471601,116580.0,116570.0,0.57583424]
[1754709293769,0.17471601,116580.0,116570.0,0.2576514]
[1754709293987,0.17471601,116580.0,116570.0,0.40426351]
[1754709294178,0.17471601,116580.0,116570.0,0.57583424]
[1754709294662,0.17471601,116580.0,116570.0,0.2576514]
[1754709294858,0.17471601,116580.0,116570.0,0.57583424]
[1754709295395,0.17677601,116580.0,116570.0,0.08416067]
[1754709296572,0.17677601,116580.0,116570.0,0.40234351]
[1754709299518,0.17677601,116580.0,116570.0,0.08416067]
[1754709299750,0.17677601,116580.0,116570.0,0.40234351]
[1754709299923,0.31945601,116580.0,116570.0,0.40234351]
[1754709305733,0.31945601,116580.0,116570.0,0.08416067]
[1754709305952,0.31945601,116580.0,116570.0,0.40234351]
[1754709309561,0.63763885,116580.0,116570.0,0.08416067]
[1754709309770,0.63763885,116580.0,116570.0,0.007]
[1754709310200,0.31945601,116580.0,116570.0,0.007]
[1754709310401,0.31945601,116580.0,116570.0,0.32518284]
[1754709311130,0.31945601,116580.0,116570.0,0.007]
[1754709315124,0.63763885,116580.0,116570.0,0.007]
[1754709315290,0.81129521,116580.0,116570.0,0.007]
[1754709316517,0.49311237,116580.0,116570.0,0.007]
[1754709317892,0.50160938,116580.0,116570.0,0.007]
[1754709318766,0.40595514,116580.0,116570.0,0.007]
[1754709320583,0.40595514,116580.0,116570.0,0.32518284]
[1754709321489,0.40595514,116580.0,116570.0,0.007]
[1754709321743,0.40595514,116580.0,116570.0,0.32518284]
[1754709321972,0.40595514,116580.0,116570.0,0.33386062]
[1754709325394,0.40595514,116580.0,116570.0,0.01567778]
[1754709325577,0.40595514,116580.0,116570.0,0.33386062]
[1754709330467,0.43172814,116580.0,116570.0,0.33386062]
[1754709331076,0.43172814,116580.0,116570.0,0.01567778]
[1754709331321,0.43172814,116580.0,116570.0,0.33386062]
[1754709331712,0.43172814,116580.0,116570.0,0.01567778]
[1754709331887,0.43172814,116580.0,116570.0,0.33386062]
[1754709332686,0.43172814,116580.0,116570.0,0.39561064]
[1754709333516,0.43172814,116580.0,116570.0,0.0774278]
[1754709333738,0.43172814,116580.0,116570.0,0.39561064]
[1754709334239,0.43172814,116580.0,116570.0,0.33386062]
[1754709335024,0.43172814,116580.0,116570.0,0.33578062]
[1754709335918,0.43172814,116580.0,116570.0,0.33386062]
[1754709336844,0.43172814,116580.0,116570.0,0.01567778]
[1754709336992,0.43172814,116580.0,116570.0,0.33386062]
[1754709340042,0.43172814,116580.0,116570.0,0.33578062]
[1754709341853,0.43172814,116580.0,116570.0,0.33386062]
[1754709342070,0.43172814,116580.0,116570.0,0.01567778]
[1754709342279,0.43172814,116580.0,116570.0,0.33386062]
[1754709343637,0.43172814,116580.0,116570.0,0.01567778]
[1754709343850,0.43172814,116580.0,116570.0,0.33386062]
[1754709344289,0.43172814,116580.0,116570.0,0.01567778]
[1754709344490,0.43172814,116580.0,116570.0,0.33386062]
[1754709344980,0.43172814,116580.0,116570.0,0.01567778]
[1754709345209,0.43172814,116580.0,116570.0,0.33386062]
[1754709345558,0.43172814,116580.0,116570.0,0.01567778]
[1754709345726,0.43172814,116580.0,116570.0,0.33386062]
[1754709348325,0.43172814,116580.0,116570.0,0.32518284]
[1754709348538,0.43172814,116580.0,116570.0,0.007]
[1754709348741,0.43172814,116580.0,116570.0,0.32518284]
[1754709350073,0.43172814,116580.0,116570.0,0.007]
[1754709350206,0.43172814,116580.0,116570.0,0.32518284]
[1754709350866,0.43172814,116580.0,116570.0,0.007]
[1754709351071,0.43172814,116580.0,116570.0,0.32518284]
[1754709351481,0.43172814,116580.0,116570.0,0.007]
[1754709351951,0.43172814,116580.0,116570.0,0.32518284]
[1754709352362,0.43138674,116580.0,116570.0,0.32518284]
[1754709353083,0.43138674,116580.0,116570.0,0.007]
[1754709353293,0.43138674,116580.0,116570.0,0.32518284]
[1754709353603,0.43138674,116580.0,116570.0,0.007]
[1754709353774,0.43138674,116580.0,116570.0,0.32518284]
[1754709356251,0.43138674,116580.0,116570.0,0.32518284]
[1754709356634,0.43138674,116580.0,116570.0,0.007]
[1754709356837,0.43138674,116580.0,116570.0,0.32518284]
[1754709358889,0.40561374,116580.0,116570.0,0.32518284]
[1754709359605,0.40561374,116580.0,116570.0,0.007]
[1754709359808,0.40561374,116580.0,116570.0,0.32518284]
[1754709361017,0.40561374,116580.0,116570.0,0.007]
[1754709361220,0.40561374,116580.0,116570.0,0.32518284]
[1754709362300,0.40561374,116580.0,116570.0,0.007]
[1754709362468,0.40561374,116580.0,116570.0,0.32518284]
[1754709362711,0.40561374,116580.0,116570.0,0.40234351]
[1754709365247,0.40555374,116580.0,116570.0,0.40234351]
[1754709366047,0.40555374,116580.0,116570.0,0.48913776]
[1754709366461,0.40555374,116580.0,116570.0,0.40234351]
[1754709369230,0.40555374,116580.0,116570.0,0.08416067]
[1754709369452,0.40555374,116580.0,116570.0,0.40234351]
[1754709370516,0.40555374,116580.0,116570.0,0.08416067]
[1754709370719,0.40555374,116580.0,116570.0,0.40234351]
[1754709372644,0.40555374,116580.0,116570.0,0.08416067]
[1754709372860,0.40555374,116580.0,116570.0,0.40234351]
[1754709381776,0.40555374,116580.0,116570.0,0.08416067]
[1754709381989,0.40555374,116580.0,116570.0,0.40234351]
[1754709382618,0.40555374,116580.0,116570.0,0.08416067]
[1754709382822,0.40555374,116580.0,116570.0,0.40234351]
[1754709383495,0.40555374,116580.0,116570.0,0.08416067]
[1754709383921,0.40555374,116580.0,116570.0,0.40234351]
[1754709384351,0.49234799,116580.0,116570.0,0.08416067]
[1754709384606,0.40555374,116580.0,116570.0,0.40234351]
[1754709384819,0.40555374,116580.0,116570.0,0.08416067]
[1754709386812,0.40555374,116580.0,116570.0,0.40234351]
[1754709387214,0.72373658,116580.0,116570.0,0.08416067]
[1754709387451,0.45231473,116580.0,116570.0,0.007]
[1754709388033,0.77049757,116580.0,116570.0,0.007]
[1754709388387,0.72373658,116580.0,116570.0,0.007]
[1754709389807,0.40555374,116580.0,116570.0,0.007]
[1754709390546,0.40555374,116580.0,116570.0,0.32518284]
[1754709390983,0.43132674,116580.0,116570.0,0.32518284]
[1754709391609,0.43132674,116580.0,116570.0,0.007]
[1754709391786,0.43132674,116580.0,116570.0,0.32518284]
[1754709392454,0.51812099,116580.0,116570.0,0.007]
[1754709392950,1.15448667,116580.0,116570.0,0.007]
[1754709393158,0.83630383,116580.0,116570.0,0.007]
[1754709393373,0.83630383,116580.0,116570.0,0.004]
[1754709393374,1.15448667,116580.0,116570.0,0.004]
[1754709393814,0.83630383,116580.0,116570.0,0.001]
[1754709394228,0.17158544,116560.0,116550.0,0.07716067]
[1754709394444,0.30862544,116560.0,116550.0,0.39738555]
[1754709394657,0.31176544,116560.0,116550.0,0.39738555]
[1754709395043,0.31075472,116560.0,116550.0,0.39738555]
[1754709395596,0.31276472,116560.0,116550.0,0.07920271]
[1754709395808,0.31276472,116560.0,116550.0,0.40238555]
[1754709396452,0.31276472,116560.0,116550.0,0.08420271]
[1754709396628,0.31276472,116560.0,116550.0,0.40046555]
[1754709396947,0.33854072,116560.0,116550.0,0.40446555]
[1754709397276,0.33854072,116560.0,116550.0,0.08628271]
[1754709397482,0.33854072,116560.0,116550.0,0.00912204]
[1754709397938,0.65672356,116560.0,116550.0,0.00912204]
[1754709398145,0.82641633,116560.0,116550.0,0.00912204]
[1754709398359,0.42540283,116560.0,116550.0,0.00912204]
[1754709398566,0.74358567,116560.0,116550.0,0.00912204]
[1754709398983,0.74358567,116560.0,116550.0,0.00512204]
[1754709399195,0.42540283,116560.0,116550.0,0.00012204]
[1754709403583,0.43416115,116560.0,116550.0,0.00012204]
[1754709404592,0.42540283,116560.0,116550.0,0.00012204]
[1754709404956,0.42540283,116560.0,116550.0,0.31830488]
[1754709405363,0.42540283,116560.0,116550.0,0.00012204]
[1754709407111,0.51219708,116560.0,116550.0,0.00012204]
[1754709407779,0.52099789,116560.0,116550.0,0.00012204]
[1754709409349,0.42540283,116560.0,116550.0,0.00012204]
[1754709409792,0.42540283,116560.0,116550.0,0.31830488]
[1754709411210,0.42540283,116560.0,116550.0,0.00012204]
[1754709411438,0.42540283,116560.0,116550.0,0.31830488]
[1754709418070,0.42540283,116560.0,116550.0,0.00012204]
[1754709418272,0.42540283,116560.0,116550.0,0.31830488]
[1754709418552,0.42540283,116560.0,116550.0,0.00012204]
[1754709418781,0.42540283,116560.0,116550.0,0.31830488]
[1754709426975,0.42540283,116560.0,116550.0,0.00012204]
[1754709427318,0.42540283,116560.0,116550.0,0.31830488]
[1754709441965,0.42540283,116560.0,116550.0,0.00012204]
[1754709442160,0.42540283,116560.0,116550.0,0.31830488]
[1754709449409,0.42540283,116560.0,116550.0,0.00012204]
[1754709449905,0.42540283,116560.0,116550.0,0.31830488]
[1754709453690,0.42540283,116560.0,116550.0,0.00012204]
[1754709453876,0.42540283,116560.0,116550.0,0.31830488]
[1754709456787,0.42540283,116560.0,116550.0,0.00012204]
[1754709457009,0.42540283,116560.0,116550.0,0.31830488]
[1754709465786,0.42540283,116560.0,116550.0,0.00012204]
[1754709465955,0.42540283,116560.0,116550.0,0.31830488]
[1754709469326,0.42527448,116560.0,116550.0,0.31830488]
[1754709479440,0.42527448,116560.0,116550.0,0.00012204]
[1754709479796,0.42527448,116560.0,116550.0,0.31830488]
[1754709482398,0.42012448,116560.0,116550.0,0.70977256]
[1754709482608,0.33326237,116560.0,116550.0,0.81120789]
[1754709482818,0.33326237,116560.0,116550.0,0.88836856]
[1754709482819,0.33440144,116560.0,116550.0,0.88836856]
[1754709483053,0.162816,116560.0,116550.0,0.88836856]
[1754709483260,0.13704,116560.0,116550.0,0.81120789]
[1754709483418,0.13704,116560.0,116550.0,0.88841392]
[1754709483609,0.13704,116560.0,116550.0,0.97520817]
[1754709486208,0.30862544,116560.0,116550.0,0.97520817]
[1754709490277,0.30862544,116560.0,116550.0,0.97400817]
[1754709491241,0.30862544,116560.0,116550.0,0.802408]
[1754709491708,0.30862544,116560.0,116550.0,0.16604232]
[1754709491914,0.30862544,116560.0,116550.0,0.48422516]
[1754709499873,0.31172544,116560.0,116550.0,0.48422516]
[1754709508748,0.31383544,116560.0,116550.0,0.48422516]
[1754709512591,0.31172544,116560.0,116550.0,0.48422516]
[1754709513074,0.31172544,116560.0,116550.0,0.97400817]
[1754709513479,0.30862544,116560.0,116550.0,0.97400817]
[1754709516309,0.30862544,116560.0,116550.0,0.89680214]
[1754709519599,0.31183544,116560.0,116550.0,0.89680214]
[1754709519969,0.14025,116560.0,116550.0,0.89680214]
[1754709520169,0.13704,116560.0,116550.0,0.89680214]
[1754709523807,0.17479305,116570.0,116560.0,0.17158544]
[1754709524006,0.30931305,116570.0,116560.0,0.88516554]
[1754709524242,0.30931305,116570.0,116560.0,0.88708554]
[1754709524630,0.31142305,116570.0,116560.0,0.88708554]
[1754709525241,0.31342305,116570.0,116560.0,0.88708554]
[1754709526082,0.31642305,116570.0,116560.0,0.88708554]
[1754709526491,0.31342305,116570.0,116560.0,0.97387979]
[1754709526697,0.31142305,116570.0,116560.0,0.97787979]
[1754709526930,0.31142305,116570.0,116560.0,0.17292867]
[1754709527137,0.31142305,116570.0,116560.0,0.7205801]
[1754709534423,0.17690305,116570.0,116560.0,0.89216554]
[1754709534664,0.30602305,116570.0,116560.0,0.89408554]
[1754709535400,0.30914305,116570.0,116560.0,0.89408554]
[1754709535558,0.13444,116570.0,116560.0,0.89408554]
[1754709535765,0.13444,116570.0,116560.0,0.98087979]
[1754709536948,0.13444,116570.0,116560.0,0.90366537]
[1754709537520,0.13444,116570.0,116560.0,0.98082984]
[1754709539004,0.13756,116570.0,116560.0,0.34446416]
[1754709539213,0.30913073,116570.0,116560.0,0.98082984]
[1754709540468,0.31116073,116570.0,116560.0,0.98082984]
[1754709542668,0.31116073,116570.0,116560.0,0.97890984]
[1754709543269,0.13959,116570.0,116560.0,0.34254416]
[1754709543766,0.13959,116570.0,116560.0,0.97890984]
[1754709543973,0.31116073,116570.0,116560.0,0.97890984]
[1754709546563,0.31116073,116570.0,116560.0,0.34254416]
[1754709546769,0.31116073,116570.0,116560.0,0.89211559]
[1754709552447,0.31116073,116570.0,116560.0,0.25574991]
[1754709552617,0.31116073,116570.0,116560.0,0.89211559]
[1754709569050,0.31116073,116570.0,116560.0,0.89403559]
[1754709574695,0.31116073,116570.0,116560.0,0.81687112]
[1754709575107,0.31116073,116570.0,116560.0,0.90366537]
[1754709575839,0.31116073,116570.0,116560.0,0.26729969]
[1754709576044,0.31116073,116570.0,116560.0,0.18050544]
[1754709576259,0.31116073,116570.0,116560.0,0.81687112]
[1754709576526,0.31116073,116570.0,116560.0,0.89409886]
[1754709579351,0.31116073,116570.0,116560.0,0.57591602]
[1754709583531,0.31116073,116570.0,116560.0,0.49868828]
[1754709591345,0.31116073,116570.0,116560.0,0.18050544]
[1754709591561,0.31116073,116570.0,116560.0,0.49868828]
[1754709591772,0.31116073,116570.0,116560.0,0.49676828]
[1754709592550,0.31116073,116570.0,116560.0,0.007]
[1754709592756,0.62934357,116570.0,116560.0,0.007]
[1754709592952,0.62934357,116570.0,116560.0,0.08422971]
[1754709593421,0.31116073,116570.0,116560.0,0.08422971]
[1754709594110,0.31116073,116570.0,116560.0,0.40241255]
[1754709596682,0.31116073,116570.0,116560.0,0.08422971]
[1754709598436,0.31116073,116570.0,116560.0,0.40241255]
[1754709606538,0.31116073,116570.0,116560.0,0.08422971]
[1754709606743,0.31116073,116570.0,116560.0,0.40241255]
[1754709607935,0.31116073,116570.0,116560.0,0.08422971]
[1754709609950,0.62934357,116570.0,116560.0,0.08422971]
[1754709614989,0.31116073,116570.0,116560.0,0.08422971]
[1754709620575,0.31116073,116570.0,116560.0,0.40241255]
[1754709622535,0.31116073,116570.0,116560.0,0.08422971]
[1754709622747,0.31116073,116570.0,116560.0,0.40241255]
[1754709625155,0.31116073,116570.0,116560.0,0.08422971]
[1754709630564,0.31116073,116570.0,116560.0,0.40241255]
[1754709632859,0.71620568,116570.0,116560.0,0.08422971]
[1754709633230,0.75358018,116570.0,116560.0,0.007]
[1754709634282,0.17158544,116560.0,116550.0,0.00012204]
[1754709634467,0.49171828,116560.0,116550.0,0.00012204]
[1754709634614,0.49476828,116560.0,116550.0,0.00012204]
[1754709634846,0.52054528,116560.0,116550.0,0.00012204]
[1754709635466,0.52054528,116560.0,116550.0,0.00712204]
[1754709637336,0.20236244,116560.0,116550.0,0.00712204]
[1754709637542,0.52054528,116560.0,116550.0,0.00712204]
[1754709638644,0.52899923,116560.0,116550.0,0.00712204]
[1754709638851,0.52054528,116560.0,116550.0,0.00712204]
[1754709641238,0.20236244,116560.0,116550.0,0.00712204]
[1754709642577,0.52054528,116560.0,116550.0,0.00712204]
[1754709643460,0.20236244,116560.0,116550.0,0.00712204]
[1754709643786,0.20236244,116560.0,116550.0,0.32530488]
[1754709648755,0.20236244,116560.0,116550.0,0.00712204]
[1754709648959,0.20236244,116560.0,116550.0,0.32530488]
[1754709659935,0.20236244,116560.0,116550.0,0.00712204]
[1754709660145,0.20236244,116560.0,116550.0,0.32530488]
[1754709662379,0.20236244,116560.0,116550.0,0.40253459]
[1754709670239,0.20236244,116560.0,116550.0,0.08435175]
[1754709670393,0.20236244,116560.0,116550.0,0.40253459]
[1754709680295,0.20236244,116560.0,116550.0,0.08435175]
[1754709680530,0.20236244,116560.0,116550.0,0.40253459]
[1754709689080,0.20236244,116560.0,116550.0,0.08435175]
[1754709689297,0.20236244,116560.0,116550.0,0.40253459]
[1754709690052,0.20236244,116560.0,116550.0,0.08435175]
[1754709690260,0.20236244,116560.0,116550.0,0.40253459]
[1754709693801,0.20236244,116560.0,116550.0,0.08435175]
[1754709694006,0.20236244,116560.0,116550.0,0.40253459]
[1754709695846,0.20236244,116560.0,116550.0,0.08435175]
[1754709696019,0.20236244,116560.0,116550.0,0.40253459]
[1754709699603,0.20236244,116560.0,116550.0,0.08435175]
[1754709699828,0.20236244,116560.0,116550.0,0.40253459]
[1754709701360,0.20170744,116560.0,116550.0,0.40253459]
[1754709702286,0.20170744,116560.0,116550.0,0.08435175]
[1754709702505,0.20170744,116560.0,116550.0,0.40253459]
[1754709708790,0.20170744,116560.0,116550.0,0.08435175]
[1754709708992,0.20170744,116560.0,116550.0,0.40253459]
[1754709712803,0.20170744,116560.0,116550.0,0.08435175]
[1754709713103,0.20170744,116560.0,116550.0,0.40253459]
[1754709713801,0.20170744,116560.0,116550.0,0.08435175]
[1754709714010,0.20170744,116560.0,116550.0,0.40253459]
[1754709719678,0.20170744,116560.0,116550.0,0.08435175]
[1754709719880,0.20170744,116560.0,116550.0,0.40253459]
[1754709720460,0.20170744,116560.0,116550.0,0.08435175]
[1754709720645,0.20170744,116560.0,116550.0,0.40253459]
[1754709722862,0.20170744,116560.0,116550.0,0.08435175]
[1754709723067,0.20170744,116560.0,116550.0,0.40253459]
[1754709723482,0.20170744,116560.0,116550.0,0.08435175]
[1754709723674,0.20170744,116560.0,116550.0,0.40253459]
[1754709729311,0.20170744,116560.0,116550.0,0.08435175]
[1754709729546,0.20170744,116560.0,116550.0,0.40253459]
[1754709729890,0.20170744,116560.0,116550.0,0.08435175]
[1754709730090,0.20170744,116560.0,116550.0,0.40253459]
[1754709730684,0.20170744,116560.0,116550.0,0.08435175]
[1754709731095,0.20170744,116560.0,116550.0,0.40253459]